fUST/lending_fUST_20251218
["ID","MTS","AMOUNT","RATE_DAILY","PERIOD"]
[398948201,1766013048826,-226.64628966,0.000422,120]
[398948202,1766013048835,-217.3810724,0.000422,120]
[398948203,1766013048846,-500.0,0.00042352,120]
[398948204,1766013048857,-544.69,0.00042465,20]
[398948205,1766013048866,-651.98,0.00042465,120]
[398948206,1766013048876,-1589.75,0.00042465,120]
[398948207,1766013048886,-1000.0,0.00042465,120]
[398948208,1766013048895,-500.0,0.00042465,30]
[398948209,1766013048905,-1914.8,0.00042465,120]
[398948210,1766013048915,-728.1,0.00042465,120]
[398948211,1766013048924,-500.0,0.00042465,120]
[398948212,1766013048933,-834.96,0.00042465,2]
[398948213,1766013048943,-499.63000001,0.00042465,120]
[398948214,1766013048952,-9626.98,0.00042465,3]
[398948215,1766013048962,-500.0,0.00042465,120]
[398948216,1766013048972,-500.0,0.00042465,120]
[398948217,1766013048981,-2858.93,0.00042465,2]
[398948218,1766013048991,-1678.24,0.00042465,120]
[398948219,1766013049000,-481.46770977,0.00042465,120]
[398948220,1766013049009,-1098.22,0.00042465,120]
[398948221,1766013049095,-500.0,0.00042465,120]
[398948222,1766013049105,-695.03,0.00042465,120]
[398948223,1766013049115,-500.0,0.00042465,120]
[398948224,1766013049124,-791.69,0.00042465,120]
[398948225,1766013049133,-500.0,0.00042465,120]
[398948226,1766013049143,-500.0,0.00042465,120]
[398948227,1766013049152,-152.0,0.000425,120]
[398948228,1766013049161,-500.0,0.00042626,120]
[398948229,1766013049170,-1193.07582393,0.000427,120]
[398948230,1766013049180,-569.70925701,0.00042739,120]
[398948231,1766013049189,-544.69,0.00042739,20]
[398948232,1766013049198,-651.98,0.00042739,120]
[398948233,1766013049207,-1589.75,0.00042739,120]
[398948234,1766013049216,-1000.0,0.00042739,120]
[398948235,1766013049226,-1914.8,0.00042739,120]
[398948236,1766013049235,-728.1,0.00042739,120]
[398948237,1766013049244,-500.0,0.00042739,120]
[398948238,1766013049253,-959.93,0.00042739,45]
[398948239,1766013049262,-834.96,0.00042739,2]
[398948240,1766013049272,-9626.98,0.00042739,3]
[398948241,1766013049284,-500.0,0.00042739,120]
[398948242,1766013049293,-500.0,0.00042739,120]
[398948243,1766013049302,-2858.93,0.00042739,2]
[398948244,1766013049312,-1678.24,0.00042739,120]
[398948245,1766013049321,-1098.22,0.00042739,120]
[398948246,1766013049331,-500.0,0.00042739,120]
[398948247,1766013049340,-695.03,0.00042739,120]
[398948248,1766013049349,-500.0,0.00042739,120]
[398948249,1766013049358,-791.69,0.00042739,120]
[398948250,1766013049372,-500.0,0.00042739,120]
[398948251,1766013049381,-500.0,0.00042739,120]
[398948252,1766013049390,-504.0,0.00042784,120]
[398948253,1766013049399,-500.0,0.000429,120]
[398948254,1766013049409,-151.0,0.0004294,120]
[398948255,1766013049418,-288.33499842,0.00043,120]
[398948256,1766013049428,-544.69,0.00043013,20]
[398948257,1766013049438,-651.98,0.00043013,120]
[398948258,1766013049447,-1589.75,0.00043013,120]
[398948259,1766013049456,-1000.0,0.00043013,120]
[398948260,1766013049465,-1914.8,0.00043013,120]
[398948261,1766013049475,-728.1,0.00043013,120]
[398948262,1766013049484,-398.5,0.00043013,120]
[398948263,1766013049493,-834.96,0.00043013,2]
[398948264,1766013049503,-9626.98,0.00043013,3]
[398948265,1766013049513,-500.0,0.00043013,120]
[398948266,1766013049522,-500.0,0.00043013,120]
[398948267,1766013049531,-2858.93,0.00043013,2]
[398948268,1766013049541,-1678.24,0.00043013,120]
[398948269,1766013049550,-1098.22,0.00043013,120]
[398948270,1766013049559,-500.0,0.00043013,120]
[398948271,1766013049568,-695.03,0.00043013,120]
[398948272,1766013049577,-500.0,0.00043013,120]
[398948273,1766013049586,-791.69,0.00043013,120]
[398948274,1766013049595,-500.0,0.00043013,120]
[398948275,1766013049604,-500.0,0.00043013,120]
[398948276,1766013049613,-152.0,0.000431,120]
[398948277,1766013049622,-500.0,0.00043174,120]
[398948278,1766013049631,-169.0,0.00043285,120]
[398948279,1766013049640,-544.69,0.00043287,20]
[398948280,1766013049649,-651.98,0.00043287,120]
[398948281,1766013049658,-1589.75,0.00043287,120]
[398948282,1766013049667,-1000.0,0.00043287,120]
[398948283,1766013049676,-1914.8,0.00043287,120]
[398948284,1766013049685,-728.1,0.00043287,120]
[398948285,1766013049693,-959.93,0.00043287,50]
[398948286,1766013049702,-834.96,0.00043287,2]
[398948287,1766013049712,-9626.98,0.00043287,3]
[398948288,1766013049721,-500.0,0.00043287,120]
[398948289,1766013049731,-500.0,0.00043287,120]
[398948290,1766013049740,-2858.93,0.00043287,2]
[398948291,1766013049750,-1678.24,0.00043287,120]
[398948292,1766013049759,-1098.22,0.00043287,120]
[398948293,1766013049768,-440.19130051,0.00043287,120]
[398948294,1766013049777,-695.03,0.00043287,120]
[398948295,1766013049786,-500.0,0.00043287,120]
[398948296,1766013049795,-791.69,0.00043287,120]
[398948297,1766013049804,-500.0,0.00043287,120]
[398948298,1766013049813,-500.0,0.00043287,120]
[398948299,1766013049823,-2234.6133581,0.00043394,2]
[398948300,1766013049832,-16616.13,0.00043421,5]
[398948301,1766013049841,-500.0,0.00043448,120]
[398948302,1766013049849,-177.64021355,0.000435,120]
[398948303,1766013049859,-168.94036194,0.000435,120]
[398948304,1766013049868,-178.68197063,0.000435,120]
[398948305,1766013049877,-305.97655742,0.000435,120]
[398948306,1766013049887,-3846.59,0.000435,14]
[398948307,1766013049896,-544.69,0.00043561,20]
[398948308,1766013049905,-651.98,0.00043561,120]
[398948309,1766013049914,-1589.75,0.00043561,120]
[398948310,1766013049923,-1000.0,0.00043561,120]
[398948311,1766013049933,-1914.8,0.00043561,120]
[398948312,1766013049942,-728.1,0.00043561,120]
[398948313,1766013049951,-834.96,0.00043561,2]
[398948314,1766013049960,-9626.98,0.00043561,3]
[398948315,1766013049970,-358.80865934,0.00043561,120]
[398948316,1766013049979,-500.0,0.00043561,120]
[398948317,1766013049989,-2858.93,0.00043561,2]
[398948318,1766013049998,-1678.24,0.00043561,120]
[398948319,1766013050008,-1098.22,0.00043561,120]
[398948320,1766013050017,-695.03,0.00043561,120]
[398948321,1766013050026,-500.0,0.00043561,120]
[398948322,1766013050035,-791.69,0.00043561,120]
[398948323,1766013050044,-500.0,0.00043561,120]
[398948324,1766013050053,-169.61,0.00043561,120]
[398948325,1766013050062,-500.0,0.00043721,120]
[398948326,1766013050072,-1000.0,0.000438,90]
[398948327,1766013050081,-1000.0,0.000438,90]
[398948328,1766013050090,-152.0,0.000438,120]
[398948329,1766013050099,-544.69,0.00043835,20]
[398948330,1766013050109,-651.98,0.00043835,120]
[398948331,1766013050118,-1589.75,0.00043835,120]
[398948332,1766013050127,-1000.0,0.00043835,120]
[398948333,1766013050136,-1914.8,0.00043835,120]
[398948334,1766013050145,-728.1,0.00043835,120]
[398948335,1766013050154,-959.93,0.00043835,55]
[398948336,1766013050163,-834.96,0.00043835,2]
[398948337,1766013050172,-9626.98,0.00043835,3]
[398948338,1766013050181,-500.0,0.00043835,120]
[398948339,1766013050190,-2858.93,0.00043835,2]
[398948340,1766013050199,-1678.24,0.00043835,120]
[398948341,1766013050208,-1098.22,0.00043835,120]
[398948342,1766013050217,-695.03,0.00043835,120]
[398948343,1766013050227,-500.0,0.00043835,120]
[398948344,1766013050236,-791.69,0.00043835,120]
[398948345,1766013050244,-500.0,0.00043835,120]
[398948346,1766013050254,-500.0,0.00043995,120]
[398948347,1766013050263,-34477.48,0.00044083,5]
[398948348,1766013050272,-544.69,0.00044109,20]
[398948349,1766013050282,-651.98,0.00044109,120]
[398948350,1766013050291,-1589.75,0.00044109,120]
[398948351,1766013050300,-1000.0,0.00044109,120]
[398948352,1766013050310,-1914.8,0.00044109,120]
[398948353,1766013050318,-728.1,0.00044109,120]
[398948354,1766013050327,-834.96,0.00044109,2]
[398948355,1766013050337,-9626.98,0.00044109,3]
[398948356,1766013050346,-500.0,0.00044109,120]
[398948357,1766013050355,-2858.93,0.00044109,2]
[398948358,1766013050366,-1678.24,0.00044109,120]
[398948359,1766013050376,-1098.22,0.00044109,120]
[398948360,1766013050384,-695.03,0.00044109,120]
[398948361,1766013050393,-500.0,0.00044109,120]
[398948362,1766013050404,-791.69,0.00044109,120]
[398948363,1766013050416,-500.0,0.00044109,120]
[398948364,1766013050425,-985.21628445,0.00044187,2]
[398948365,1766013050434,-500.0,0.00044269,120]
[398948366,1766013050445,-544.69,0.00044383,20]
[398948367,1766013050454,-651.98,0.00044383,120]
[398948368,1766013050463,-1589.75,0.00044383,120]
[398948369,1766013050472,-1000.0,0.00044383,120]
[398948370,1766013050481,-1914.8,0.00044383,120]
[398948371,1766013050490,-728.1,0.00044383,120]
[398948372,1766013050499,-959.93,0.00044383,60]
[398948373,1766013050508,-834.96,0.00044383,2]
[398948374,1766013050517,-9626.98,0.00044383,3]
[398948375,1766013050526,-500.0,0.00044383,120]
[398948376,1766013050535,-2858.93,0.00044383,2]
[398948377,1766013050544,-1678.24,0.00044383,120]
[398948378,1766013050554,-1098.22,0.00044383,120]
[398948379,1766013050563,-695.03,0.00044383,120]
[398948380,1766013050572,-500.0,0.00044383,120]
[398948381,1766013050581,-791.69,0.00044383,120]
[398948382,1766013050590,-500.0,0.00044383,120]
[398948383,1766013050599,-152.0,0.000444,120]
[398948384,1766013050608,-498.6096364,0.00044482,2]
[398948385,1766013050617,-500.0,0.00044543,120]
[398948386,1766013050625,-183.5628943,0.00044576,30]
[398948387,1766013050635,-544.69,0.00044657,20]
[398948388,1766013050645,-651.98,0.00044657,120]
[398948389,1766013050654,-1589.75,0.00044657,120]
[398948390,1766013050663,-1000.0,0.00044657,120]
[398948391,1766013050673,-1914.8,0.00044657,120]
[398948392,1766013050682,-728.1,0.00044657,120]
[398948393,1766013050691,-834.96,0.00044657,2]
[398948394,1766013050701,-9626.98,0.00044657,3]
[398948395,1766013050710,-500.0,0.00044657,120]
[398948396,1766013050719,-2858.93,0.00044657,2]
[398948397,1766013050728,-1678.24,0.00044657,120]
[398948398,1766013050738,-1098.22,0.00044657,120]
[398948399,1766013050747,-695.03,0.00044657,120]
[398948400,1766013050756,-500.0,0.00044657,120]
[398948401,1766013050765,-791.69,0.00044657,120]
[398948402,1766013050774,-217.44974384,0.00044657,120]
[398948403,1766013050783,-21341.71,0.000447,5]
[398948404,1766013050793,-177.64021355,0.000448,120]
[398948405,1766013050802,-168.94036194,0.000448,120]
[398948406,1766013050885,-178.68197063,0.000448,120]
[398948407,1766013050896,-305.97655742,0.000448,120]
[398948408,1766013050905,-500.0,0.00044817,120]
[398948409,1766013050915,-151.0,0.00044881,120]
[398948410,1766013050925,-544.69,0.00044931,20]
[398948411,1766013050935,-651.98,0.00044931,120]
[398948412,1766013050944,-1589.75,0.00044931,120]
[398948413,1766013050953,-360.86323602,0.00044931,120]
[398948414,1766013050962,-1914.8,0.00044931,120]
[398948415,1766013050973,-728.1,0.00044931,120]
[398948416,1766013050982,-959.93,0.00044931,65]
[398948417,1766013050992,-834.96,0.00044931,2]
[398948418,1766013051001,-9626.98,0.00044931,3]
[398948419,1766013051011,-500.0,0.00044931,120]
[398948420,1766013051020,-2858.93,0.00044931,2]
[398948421,1766013051030,-1678.24,0.00044931,120]
[398948422,1766013051039,-1098.22,0.00044931,120]
[398948423,1766013051049,-695.03,0.00044931,120]
[398948424,1766013051058,-500.0,0.00044931,120]
[398948425,1766013051066,-791.69,0.00044931,120]
[398948426,1766013051076,-152.0,0.00045,120]
[398948427,1766013051140,-212.95740018,0.00045,90]
[398948428,1766013051150,-201.58590292,0.00045,120]
[398948429,1766013051160,-200.0,0.00045,120]
[398948430,1766013051169,-544.69,0.00045205,20]
[398948431,1766013051178,-651.98,0.00045205,120]
[398948432,1766013051187,-1589.75,0.00045205,120]
[398948433,1766013051197,-1914.8,0.00045205,120]
[398948434,1766013051206,-728.1,0.00045205,120]
[398948435,1766013051215,-834.96,0.00045205,2]
[398948436,1766013051224,-9626.98,0.00045205,3]
[398948437,1766013051234,-500.0,0.00045205,120]
[398948438,1766013051243,-2858.93,0.00045205,2]
[398948439,1766013051252,-1678.24,0.00045205,120]
[398948440,1766013051262,-1098.22,0.00045205,120]
[398948441,1766013051272,-695.03,0.00045205,120]
[398948442,1766013051281,-500.0,0.00045205,120]
[398948443,1766013051291,-791.69,0.00045205,120]
[398948444,1766013051301,-3351.39543661,0.00045352,2]
[398948445,1766013051312,-158.00270896,0.00045352,2]
[398948446,1766013051321,-1562.0137928,0.00045361,2]
[398948447,1766013051330,-597.8937512,0.00045397,30]
[398948448,1766013051340,-597.8937512,0.00045397,30]
[398948449,1766013051350,-589.8398633,0.00045397,30]
[398948450,1766013051360,-302.2567273,0.00045397,30]
[398948451,1766013051377,-24208.83,0.000454,5]
[398948452,1766013051386,-169.0,0.00045449,120]
[398948453,1766013051395,-544.69,0.00045479,20]
[398948454,1766013051405,-651.98,0.00045479,120]
[398948455,1766013051415,-1589.75,0.00045479,120]
[398948456,1766013051425,-1914.8,0.00045479,120]
[398948457,1766013051434,-728.1,0.00045479,120]
[398948458,1766013051445,-959.93,0.00045479,70]
[398948459,1766013051454,-834.96,0.00045479,2]
[398948460,1766013051463,-9626.98,0.00045479,3]
[398948461,1766013051474,-467.30848207,0.00045479,120]
[398948462,1766013051486,-2858.93,0.00045479,2]
[398948463,1766013051495,-1678.24,0.00045479,120]
[398948464,1766013051506,-1098.22,0.00045479,120]
[398948465,1766013051514,-695.03,0.00045479,120]
[398948466,1766013051523,-500.0,0.00045479,120]
[398948467,1766013051532,-791.69,0.00045479,120]
[398948468,1766013051543,-152.0,0.000457,120]
[398948469,1766013051551,-544.69,0.00045753,20]
[398948470,1766013051560,-651.98,0.00045753,120]
[398948471,1766013051569,-1589.75,0.00045753,120]
[398948472,1766013051579,-1914.8,0.00045753,120]
[398948473,1766013051589,-728.1,0.00045753,120]
[398948474,1766013051598,-834.96,0.00045753,2]
[398948475,1766013051608,-9626.98,0.00045753,3]
[398948476,1766013051617,-2858.93,0.00045753,2]
[398948477,1766013051627,-1678.24,0.00045753,120]
[398948478,1766013051637,-1098.22,0.00045753,120]
[398948479,1766013051647,-695.03,0.00045753,120]
[398948480,1766013051656,-500.0,0.00045753,120]
[398948481,1766013051666,-791.69,0.00045753,120]
[398948482,1766013051676,-507.0,0.00045784,120]
[398948483,1766013051685,-4534.0,0.00045989,120]
[398948484,1766013051694,-26093.66835544,0.00046,5]
[398948485,1766013051752,-3092.67164456,0.00046,5]
[398948486,1766013051762,-150.0,0.00046,60]
[398948487,1766013051771,-400.0,0.00046,120]
[398948488,1766013051779,-544.69,0.00046027,20]
[398948489,1766013051788,-651.98,0.00046027,120]
[398948490,1766013051798,-1589.75,0.00046027,120]
[398948491,1766013051808,-1914.8,0.00046027,120]
[398948492,1766013051817,-582.37503169,0.00046027,120]
[398948493,1766013051828,-145.72496831,0.00046027,120]
[398948494,1766013051837,-143.59123713,0.00046027,75]
[398948495,1766013051849,-816.33876287,0.00046027,75]
[398948496,1766013051858,-756.59043073,0.00046027,2]
[398948497,1766013051870,-78.36956927,0.00046027,2]
[398948498,1766013051879,-9626.98,0.00046027,3]
[398948499,1766013051888,-2858.93,0.00046027,2]
[398948500,1766013051898,-1678.24,0.00046027,120]
[398948501,1766013051907,-1098.22,0.00046027,120]
[398948502,1766013051916,-33.14038693,0.00046027,120]
[398948503,1766013051927,-661.88961307,0.00046027,120]
[398948504,1766013051936,-500.0,0.00046027,120]
[398948505,1766013051946,-791.69,0.00046027,120]
[398948506,1766013051955,-177.64021355,0.000461,120]
[398948507,1766013051973,-168.94036194,0.000461,120]
[398948508,1766013051983,-305.97655742,0.000461,120]
[398948509,1766013051992,-3846.59,0.000461,14]
[398948510,1766013052002,-205.385323,0.00046143,2]
[398948511,1766013052011,-152.0,0.000463,120]
[398948512,1766013052020,-544.69,0.00046301,20]
[398948513,1766013052029,-651.98,0.00046301,120]
[398948514,1766013052038,-1589.75,0.00046301,120]
[398948515,1766013052048,-1914.8,0.00046301,120]
[398948516,1766013052058,-728.1,0.00046301,120]
[398948517,1766013052067,-834.96,0.00046301,2]
[398948518,1766013052076,-9626.98,0.00046301,3]
[398948519,1766013052086,-2858.93,0.00046301,2]
[398948520,1766013052095,-1678.24,0.00046301,120]
[398948521,1766013052104,-1098.22,0.00046301,120]
[398948522,1766013052114,-695.03,0.00046301,120]
[398948523,1766013052124,-500.0,0.00046301,120]
[398948524,1766013052133,-791.69,0.00046301,120]
[398948525,1766013052143,-1310.0,0.00046513,120]
[398948526,1766013052152,-544.69,0.00046575,20]
[398948527,1766013052162,-651.98,0.00046575,120]
[398948528,1766013052171,-1589.75,0.00046575,120]
[398948529,1766013052180,-1914.8,0.00046575,120]
[398948530,1766013052189,-728.1,0.00046575,120]
[398948531,1766013052198,-959.93,0.00046575,80]
[398948532,1766013052207,-834.96,0.00046575,2]
[398948533,1766013052216,-9626.98,0.00046575,3]
[398948534,1766013052225,-2858.93,0.00046575,2]
[398948535,1766013052235,-1678.24,0.00046575,120]
[398948536,1766013052244,-1098.22,0.00046575,120]
[398948537,1766013052253,-695.03,0.00046575,120]
[398948538,1766013052262,-500.0,0.00046575,120]
[398948539,1766013052271,-791.69,0.00046575,120]
[398948540,1766013052280,-21922.43,0.000466,5]
[398948541,1766013052289,-154.02731375,0.00046822,30]
[398948542,1766013052298,-151.0,0.00046823,120]
[398948543,1766013052308,-544.69,0.00046849,20]
[398948544,1766013052317,-651.98,0.00046849,120]
[398948545,1766013052326,-1589.75,0.00046849,120]
[398948546,1766013052335,-1914.8,0.00046849,120]
[398948547,1766013052346,-728.1,0.00046849,120]
[398948548,1766013052355,-834.96,0.00046849,2]
[398948549,1766013052364,-9626.98,0.00046849,3]
[398948550,1766013052377,-2858.93,0.00046849,2]
[398948551,1766013052386,-1678.24,0.00046849,120]
[398948552,1766013052395,-1098.22,0.00046849,120]
[398948553,1766013052404,-695.03,0.00046849,120]
[398948554,1766013052413,-548.47226262,0.00046849,120]
[398948555,1766013052422,-791.69,0.00046849,120]
[398948556,1766013052431,-600.0,0.00046883,2]
[398948557,1766013052441,-348.5323877,0.00046888,2]
[398948558,1766013052451,-152.0,0.000469,120]
[398948559,1766013052460,-332.81,0.000469,30]
[398948560,1766013052469,-400.0,0.00047,120]
[398948561,1766013052478,-154.02731375,0.00047068,30]
[398948562,1766013052487,-544.69,0.00047123,20]
[398948563,1766013052496,-651.98,0.00047123,120]
[398948564,1766013052505,-1589.75,0.00047123,120]
[398948565,1766013052514,-1914.8,0.00047123,120]
[398948566,1766013052590,-728.1,0.00047123,120]
[398948567,1766013052599,-959.93,0.00047123,85]
[398948568,1766013052610,-834.96,0.00047123,2]
[398948569,1766013052619,-9626.98,0.00047123,3]
[398948570,1766013052629,-2858.93,0.00047123,2]
[398948571,1766013052638,-1678.24,0.00047123,120]
[398948572,1766013052647,-1098.22,0.00047123,120]
[398948573,1766013052656,-695.03,0.00047123,120]
[398948574,1766013052665,-791.69,0.00047123,120]
[398948575,1766013052674,-179.71246006,0.0004715,36]
[398948576,1766013052685,-6006.2,0.000472,2]
[398948577,1766013052695,-4600.93,0.00047262,5]
[398948578,1766013052705,-154.02731375,0.00047315,30]
[398948579,1766013052716,-600.0,0.00047371,2]
[398948580,1766013052725,-544.73672,0.00047397,20]
[398948581,1766013052734,-652.09734087,0.00047397,120]
[398948582,1766013052743,-1589.76468716,0.00047397,120]
[398948583,1766013052752,-1915.01936082,0.00047397,120]
[398948584,1766013052761,-728.13934563,0.00047397,120]
[398948585,1766013052770,-835.15385918,0.00047397,2]
[398948586,1766013052779,-9627.10530552,0.00047397,3]
[398948587,1766013052788,-2858.94455317,0.00047397,2]
[398948588,1766013052797,-1678.36952678,0.00047397,120]
[398948589,1766013052805,-1098.23465047,0.00047397,120]
[398948590,1766013052814,-695.09055878,0.00047397,120]
[398948591,1766013052823,-791.69130432,0.00047397,120]
[398948592,1766013052832,-491.34,0.000474,14]
[398948593,1766013052842,-177.64021355,0.000475,120]
[398948594,1766013052851,-168.94036194,0.000475,120]
[398948595,1766013052862,-305.97655742,0.000475,120]
[398948596,1766013052871,-152.0,0.000475,120]
[398948597,1766013052880,-154.02731375,0.00047562,30]
[398948598,1766013052889,-959.93,0.00047671,90]
[398948599,1766013052898,-169.0,0.00047722,120]
[398948600,1766013052908,-154.02731375,0.00047836,30]
[398948601,1766013052918,-759.93915447,0.00047859,2]
[398948602,1766013052927,-2755.0,0.000479,5]
[398948603,1766013052936,-4999.99999901,0.00048,7]
[398948604,1766013052946,-400.0,0.00048,120]
[398948605,1766013052955,-400.0,0.00048,120]
[398948606,1766013052974,-491.34,0.00048,14]
[398948607,1766013052983,-154.02731375,0.00048082,30]
[398948608,1766013052992,-152.0,0.000482,120]
[398948609,1766013053002,-3846.59,0.000482,14]
[398948610,1766013053011,-959.93,0.00048219,95]
[398948611,1766013053020,-154.02731375,0.00048329,30]
[398948612,1766013053030,-4300.01,0.000485,5]
[398948613,1766013053039,-154.02731375,0.00048575,30]
[398948614,1766013053049,-151.0,0.00048764,120]
[398948615,1766013053058,-959.93,0.00048767,100]
[398948616,1766013053067,-510.0,0.00048784,120]
[398948617,1766013053077,-152.0,0.000488,120]
[398948618,1766013053086,-326.38427503,0.000488,120]
[398948619,1766013053096,-154.02731375,0.00048822,30]
[398948620,1766013053105,-500.4740975,0.000489,120]
[398948621,1766013053114,-332.81,0.000489,30]
[398948622,1766013053123,-743.30940796,0.00048999,14]
[398948623,1766013053133,-314.85829684,0.00049,15]
[398948624,1766013053143,-800.0,0.00049,120]
[398948625,1766013053152,-154.02731375,0.00049068,30]
[398948626,1766013053162,-959.93,0.00049315,105]
[398948627,1766013053172,-154.02731375,0.00049315,30]
[398948628,1766013053181,-152.0,0.000494,120]
[398948629,1766013053191,-6006.2,0.000494,2]
[398948630,1766013053200,-959.93,0.00049863,110]
[398948631,1766013053209,-223.17199763,0.0005,20]
[398948632,1766013053218,-199.0,0.0005,7]
[398948633,1766013053228,-199.999999,0.0005,120]
[398948634,1766013053237,-152.0,0.0005,120]
[398948635,1766013053247,-1000.0,0.0005,120]
[398948636,1766013053256,-168.57365064,0.0005,120]
[398948637,1766013053265,-264.81353542,0.0005,120]
[398948638,1766013053276,-405.23803344,0.0005,120]
[398948639,1766013053285,-216.73343482,0.0005,120]
[398948640,1766013053295,-800.0,0.0005,120]
[398948641,1766013053304,-491.34,0.0005,14]
[398948642,1766013053315,-169.0,0.00050108,120]
[398948643,1766013053325,-959.93,0.0005041,115]
[398948644,1766013053334,-152.0,0.000507,120]
[398948645,1766013053344,-173.489,0.00050778,91]
[398948646,1766013053354,-959.93,0.00050958,120]
[398948647,1766013053363,-1000.0,0.00051,120]
[398948648,1766013053378,-150.0,0.00051,60]
[398948649,1766013053388,-800.0,0.00051,120]
[398948650,1766013053398,-3000.0,0.00051,85]
[398948651,1766013053408,-3000.0,0.0005101,85]
[398948652,1766013053418,-3000.0,0.0005102,85]
[398948653,1766013053428,-3000.0,0.0005103,85]
[398948654,1766013053437,-3000.0,0.0005104,85]
[398948655,1766013053447,-3000.0,0.0005105,85]
[398948656,1766013053457,-3000.0,0.0005106,85]
[398948657,1766013053466,-4092.43319746,0.0005107,85]
[398948658,1766013053479,-21.34134554,0.0005107,85]
[398948659,1766013053488,-830.6931,0.000511,120]
[398948660,1766013053499,-152.0,0.000513,120]
[398948661,1766013053508,-959.93,0.00051506,120]
[398948662,1766013053518,-152.0,0.000519,120]
[398948663,1766013053528,-84.01823158,0.00052,120]
[398948664,1766013053539,-915.98176842,0.00052,120]
[398948665,1766013053549,-194.80423158,0.00052,120]
[398948666,1766013055252,-191.91,0.00045,30]
[398948667,1766013055261,-191.91,0.0004725,30]
[398948668,1766013055270,-131.50839191,0.00050908,3]
[398948669,1766013127899,150.0,6.907e-05,2]
[398948670,1766013141389,150.0,7.236e-05,2]
[398948671,1766013141848,150.0,7.565e-05,2]
[398948672,1766013142258,150.0,7.894e-05,2]
[398948673,1766013142668,150.0,8.223e-05,2]
[398948674,1766013151459,192.6,0.0001,2]
[398948675,1766013153857,192.6,0.000102,2]
[398948676,1766013156234,192.6,0.000104,2]
[398948677,1766013169785,-166.40931285,0.000106,2]
[398948678,1766013208096,150.0,8.654e-05,2]
[398948679,1766013208516,150.0,9.066e-05,2]
[398948680,1766013294488,-26.19068715,0.000106,2]
[398948681,1766013294516,-150.0,0.000107,2]
[398948682,1766013294542,-192.6,0.000108,2]
[398948683,1766013294569,-192.6,0.00011,2]
[398948684,1766013294594,-177.0,0.000127,2]
[398948685,1766013294618,-300.0,0.00013272,2]
[398948686,1766013294642,-463.99040411,0.00013273,2]
[398948687,1766013294665,-500.68398952,0.00013273,2]
[398948688,1766013294688,-500.0,0.00013273,2]
[398948689,1766013294711,-500.0,0.00013273,2]
[398948690,1766013294734,-500.0,0.00013273,2]
[398948691,1766013294757,-500.20633014,0.00013273,2]
[398948692,1766013294792,-500.0,0.00013273,2]
[398948693,1766013294818,-500.0,0.00013273,2]
[398948694,1766013294843,-500.0,0.00013273,2]
[398948695,1766013294868,-251.66101855,0.00013273,2]
[398948696,1766013294893,-500.0,0.00013273,2]
[398948697,1766013294918,-500.0,0.00013273,2]
[398948698,1766013294944,-492.27346408,0.00013273,2]
[398948699,1766013294968,-500.0,0.00013273,2]
[398948700,1766013295002,-500.0,0.00013273,2]